bitfinex-derivatives/quotes_BNBF0:USTF0_20250523
["timestamp","ask_amount","ask_price","bid_price","bid_amount"]
[1748029010574,1.5472733,666.83,666.19,1.11840277]
[1748029010777,1.07107833,666.82,666.19,1.11840277]
[1748029010977,1.07107833,666.81,666.19,1.11840277]
[1748029011172,1.07114181,666.8,666.19,1.11840277]
[1748029011375,1.07114181,666.79,666.19,1.11840277]
[1748029011577,1.07119996,666.78,666.19,1.11840277]
[1748029011872,1.233,666.84,666.19,1.11840277]
[1748029012073,1.54745877,666.83,666.19,1.11840277]
[1748029012275,1.54745877,666.82,666.19,1.11840277]
[1748029012478,1.07120618,666.81,666.19,1.11840277]
[1748029012682,1.07120618,666.8,666.2,1.11840277]
[1748029012876,1.07120618,666.79,666.2,1.11840277]
[1748029013078,1.07129075,666.78,666.2,1.11840277]
[1748029013280,1.233,666.84,666.2,1.11840277]
[1748029013478,1.54751973,666.83,666.2,1.11840277]
[1748029013678,1.54751973,666.82,666.2,1.11840277]
[1748029013975,1.07122941,666.81,666.2,1.11840277]
[1748029014177,1.07133306,666.8,666.2,1.11840277]
[1748029014378,1.07133306,666.79,666.2,1.11840277]
[1748029014581,1.07133306,666.78,666.2,1.11840277]
[1748029014782,1.233,666.84,666.2,1.11840277]
[1748029014981,1.547751,666.83,666.2,1.11840277]
[1748029015182,1.547751,666.82,666.2,1.11840277]
[1748029015482,1.54778057,666.81,666.2,1.11840277]
[1748029015683,1.07138935,666.8,666.2,1.11840277]
[1748029015884,1.07138935,666.79,666.23,1.11840277]
[1748029016182,1.07138935,666.78,666.23,1.11840277]
[1748029016384,1.233,666.84,666.23,1.11840277]
[1748029016580,1.54797644,666.83,666.23,1.11840277]
[1748029016781,1.54797771,666.82,666.23,1.11840277]
[1748029016982,1.54797771,666.81,666.23,1.11840277]
[1748029017180,1.07154541,666.8,666.23,1.11840277]
[1748029017382,1.07154541,666.79,666.23,1.11840277]
[1748029017580,1.07154541,666.78,666.23,1.11840277]
[1748029017786,1.07154541,666.77,666.23,1.11840277]
[1748029017988,1.233,666.84,666.23,1.11840277]
[1748029018285,1.54807868,666.83,666.23,1.11840277]
[1748029018488,1.54811065,666.82,666.23,1.11840277]
[1748029018787,1.54811065,666.81,666.22,1.11840277]
[1748029019087,1.54811065,666.8,666.22,1.11840277]
[1748029019285,1.07161575,666.79,666.22,1.11840277]
[1748029019482,1.07161575,666.78,666.22,1.11840277]
[1748029019685,1.07161575,666.77,666.22,1.11840277]
[1748029019882,1.07161575,666.76,666.22,1.11840277]
[1748029020082,1.11626254,666.86,666.22,1.11840277]
[1748029020283,1.54833867,666.85,666.22,1.11840277]
[1748029020485,1.54833867,666.84,666.22,1.11840277]
[1748029020686,1.54833867,666.83,666.22,1.11840277]
[1748029020986,1.54833867,666.82,666.22,1.11840277]
[1748029021186,1.54833867,666.81,666.22,1.11840277]
[1748029021382,1.54833867,666.8,666.22,1.11840277]
[1748029021586,1.07179623,666.79,666.22,1.11840277]
[1748029021786,1.07179623,666.78,666.22,1.11840277]
[1748029021987,1.07179623,666.77,666.22,1.11840277]
[1748029022188,1.07179623,666.76,666.22,1.11840277]
[1748029022389,1.101,666.78,666.22,1.11840277]
[1748029022591,1.07167445,666.77,666.22,1.11840277]
[1748029022788,1.07167445,666.76,666.22,1.11840277]
[1748029022988,1.101,666.78,666.22,1.11840277]
[1748029023185,1.07167763,666.77,666.22,1.11840277]
[1748029023385,1.07167763,666.76,666.22,1.11840277]
[1748029023589,1.101,666.78,666.22,1.11840277]
[1748029023791,1.07167535,666.77,666.2,1.11840277]
[1748029024092,1.07167535,666.76,666.2,1.11840277]
[1748029024286,1.101,666.78,666.2,1.11840277]
[1748029024490,1.07166084,666.77,666.2,1.11840277]
[1748029024687,1.07166084,666.76,666.2,1.11840277]
[1748029024892,1.101,666.78,666.2,1.11840277]
[1748029025092,1.07166632,666.77,666.2,1.11840277]
[1748029025292,1.07166632,666.76,666.2,1.11840277]
[1748029025488,1.101,666.78,666.2,1.11840277]
[1748029025693,1.54827896,666.77,666.2,1.11840277]
[1748029025895,1.07171217,666.76,666.2,1.11840277]
[1748029026093,1.07165097,666.75,666.2,1.11840277]
[1748029026290,1.07165097,666.74,666.2,1.11840277]
[1748029026489,1.101,666.78,666.2,1.11840277]
[1748029026693,1.07168299,666.77,666.2,1.11840277]
[1748029026992,1.07168299,666.76,666.2,1.11840277]
[1748029027191,1.07168299,666.75,666.2,1.11840277]
[1748029027392,1.07168299,666.74,666.2,1.11840277]
[1748029027693,1.101,666.78,666.2,1.11840277]
[1748029027989,1.54838481,666.77,666.2,1.11840277]
[1748029028191,1.101,666.78,666.2,1.11840277]
[1748029028192,1.07176695,666.76,666.2,1.11840277]
[1748029028391,1.07176695,666.75,666.2,1.11840277]
[1748029028593,1.07176695,666.74,666.2,1.11840277]
[1748029028793,1.101,666.78,666.2,1.11840277]
[1748029029089,1.54858791,666.77,666.2,1.11840277]
[1748029029396,1.101,666.78,666.2,1.11840277]
[1748029029397,1.0719177,666.76,666.2,1.11840277]
[1748029029596,1.0719177,666.75,666.2,1.11840277]
[1748029029792,1.0719177,666.74,666.2,1.11840277]
[1748029029995,1.0719177,666.73,666.2,1.11840277]
[1748029030196,1.07217194,666.72,666.2,1.11840277]
[1748029030398,1.101,666.78,666.21,1.11840277]
[1748029030597,1.54903786,666.77,666.21,1.11840277]
[1748029030797,1.54903786,666.76,666.21,1.11840277]
[1748029030999,1.07217994,666.75,666.21,1.11840277]
[1748029031198,1.07217994,666.74,666.21,1.11840277]
[1748029031399,1.07217994,666.73,666.21,1.11840277]
[1748029031594,1.07217994,666.72,666.21,1.11840277]
[1748029031795,1.101,666.78,666.21,1.11840277]
[1748029031999,1.5493743,666.77,666.21,1.11840277]
[1748029032200,1.54972882,666.76,666.21,1.11840277]
[1748029032501,1.54972489,666.75,666.21,1.11840277]
[1748029032702,1.07266387,666.74,666.21,1.11840277]
[1748029032902,1.07266387,666.73,666.21,1.11840277]
[1748029033104,1.07266387,666.72,666.21,1.11840277]
[1748029033301,1.07266387,666.71,666.26,1.11840277]
[1748029033499,1.11626254,666.77,666.26,1.11840277]
[1748029033500,1.07266387,666.7,666.26,1.11840277]
[1748029033700,1.11626254,666.77,666.26,1.11840277]
[1748029033904,1.55010936,666.76,666.26,1.11840277]
[1748029034099,1.55010936,666.75,666.26,1.11840277]
[1748029034300,1.55033641,666.74,666.26,1.11840277]
[1748029034504,1.55033641,666.73,666.26,1.11840277]
[1748029034801,1.0731584,666.72,666.26,1.11840277]
[1748029035099,1.0731584,666.71,666.26,1.11840277]
[1748029035297,1.0731584,666.7,666.26,1.11840277]
[1748029035599,1.0731584,666.69,666.26,1.11840277]
[1748029035899,1.11626254,666.77,666.26,1.11840277]
[1748029036102,1.55090117,666.76,666.26,1.11840277]
[1748029036299,2.66716371,666.75,666.28,1.11840277]
[1748029036499,1.55090117,666.74,666.28,1.11840277]
[1748029036704,1.55090117,666.73,666.28,1.11840277]
[1748029036904,1.55090117,666.72,666.28,1.11840277]
[1748029037105,1.55103657,666.71,666.28,1.11840277]
[1748029037305,1.07346947,666.7,666.28,1.11840277]
[1748029037504,1.07346947,666.69,666.28,1.11840277]
[1748029037701,1.07346947,666.68,666.28,1.11840277]
[1748029037900,1.11626254,666.75,666.28,1.11840277]
[1748029038105,1.5512164,666.74,666.28,1.11840277]
[1748029038308,1.5512164,666.73,666.28,1.11840277]
[1748029038506,1.5512164,666.72,666.28,1.11840277]
[1748029038710,1.07364831,666.71,666.28,1.11840277]
[1748029040601,1.07364515,666.71,666.27,1.11840277]
[1748029040802,1.07364515,666.7,666.27,1.11840277]
[1748029041003,1.07364515,666.69,666.27,1.11840277]
[1748029041203,1.07364515,666.68,666.27,1.11840277]
[1748029041501,1.11626254,666.76,666.27,1.11840277]
[1748029041705,1.55117876,666.75,666.27,1.11840277]
[1748029041905,1.55117876,666.74,666.27,1.11840277]
[1748029042107,1.55117876,666.73,666.26,1.11840277]
[1748029042307,1.55117876,666.72,666.26,1.11840277]
[1748029042508,1.07362295,666.71,666.26,1.11840277]
[1748029042703,1.07362295,666.7,666.26,1.11840277]
[1748029042906,1.07362295,666.69,666.26,1.11840277]
[1748029043103,1.07362295,666.68,666.26,1.11840277]
[1748029043305,2.21726254,666.78,666.26,1.11840277]
[1748029043602,1.55130635,666.77,666.26,1.11840277]
[1748029043803,1.55130635,666.76,666.26,1.11840277]
[1748029044003,1.55130635,666.75,666.26,1.11840277]
[1748029044203,1.55130635,666.74,666.26,1.11840277]
[1748029044408,1.55130635,666.73,666.26,1.11840277]
[1748029044707,1.07375014,666.72,666.26,1.11840277]
[1748029044908,1.07375014,666.71,666.26,1.11840277]
[1748029045104,1.07375014,666.7,666.26,1.11840277]
[1748029045309,1.101,666.78,666.25,1.11840277]
[1748029045505,1.55140379,666.77,666.25,1.11840277]
[1748029045704,1.55140379,666.76,666.25,1.11840277]
[1748029046004,1.55140379,666.75,666.25,1.11840277]
[1748029046201,1.55140379,666.74,666.25,1.11840277]
[1748029046402,1.07381974,666.73,666.25,1.11840277]
[1748029046605,1.101,666.78,666.25,1.11840277]
[1748029046805,1.07379368,666.77,666.25,1.11840277]
[1748029047110,1.101,666.78,666.25,1.11840277]
[1748029047911,1.101,666.78,666.38,1.11840277]
[1748029050613,1.101,666.78,666.39,1.11840277]
[1748029053114,1.101,666.78,666.41,1.11840277]
[1748029055315,1.101,666.78,666.39,1.11840277]
[1748029058221,1.101,666.78,666.37,1.11840277]
[1748029060621,1.101,666.78,666.34,1.11840277]
[1748029061021,1.11626254,667.02,666.34,1.11840277]
[1748029061316,1.54927286,667.01,666.34,1.11840277]
[1748029061521,1.54923747,667.0,666.34,1.11840277]
[1748029061717,1.54923747,666.99,666.34,1.11840277]
[1748029061923,1.54923747,666.98,666.34,1.11840277]
[1748029062116,1.54923747,666.97,666.34,1.11840277]
[1748029062319,1.54923747,666.96,666.34,1.11840277]
[1748029062520,1.54923747,666.95,666.34,1.11840277]
[1748029062717,1.54923747,666.94,666.34,1.11840277]
[1748029063018,1.54923747,666.93,666.32,1.11840277]
[1748029063219,1.0724386,666.92,666.32,1.11840277]
[1748029063419,1.07224447,666.91,666.32,1.11840277]
[1748029063617,1.07224447,666.9,666.32,1.11840277]
[1748029063916,1.07224447,666.89,666.32,1.11840277]
[1748029064217,1.634,666.92,666.32,1.11840277]
[1748029064418,1.07219251,666.91,666.32,1.11840277]
[1748029064620,1.07219251,666.9,666.32,1.11840277]
[1748029064818,1.07219251,666.89,666.32,1.11840277]
[1748029065021,1.634,666.92,666.32,1.11840277]
[1748029065222,1.07212032,666.91,666.32,1.11840277]
[1748029065421,1.07212032,666.9,666.32,1.11840277]
[1748029065621,1.634,666.92,666.32,1.11840277]
[1748029065823,1.07185286,666.91,666.32,1.11840277]
[1748029066023,1.07185286,666.9,666.31,1.11840277]
[1748029066221,1.634,666.92,666.31,1.11840277]
[1748029066417,1.07182063,666.91,666.31,1.11840277]
[1748029066724,1.07182063,666.9,666.31,1.11840277]
[1748029066923,1.634,666.92,666.31,1.11840277]
[1748029067223,1.0721614,666.91,666.31,1.11840277]
[1748029067423,1.0721614,666.9,666.31,1.11840277]
[1748029067723,1.634,666.92,666.31,1.11840277]
[1748029068019,1.07221277,666.91,666.31,1.11840277]
[1748029068224,1.07221277,666.9,666.31,1.11840277]
[1748029068522,1.634,666.92,666.31,1.11840277]
[1748029068724,1.07218412,666.91,666.33,1.11840277]
[1748029068919,1.07218412,666.9,666.33,1.11840277]
[1748029069122,1.07218412,666.89,666.33,1.11840277]
[1748029069417,1.634,666.92,666.33,1.11840277]
[1748029069621,1.07213752,666.91,666.33,1.11840277]
[1748029069821,1.07213752,666.9,666.33,1.11840277]
[1748029070019,1.07213752,666.89,666.33,1.11840277]
[1748029070222,1.634,666.92,666.33,1.11840277]
[1748029070422,1.07213601,666.91,666.33,1.11840277]
[1748029070721,1.07213601,666.9,666.33,1.11840277]
[1748029070927,1.634,666.92,666.33,1.11840277]
[1748029071125,1.07211836,666.91,666.33,1.11840277]
[1748029071326,1.07211836,666.9,666.33,1.11840277]
[1748029071527,1.634,666.92,666.33,1.11840277]
[1748029071727,1.07209314,666.91,666.33,1.11840277]
[1748029071931,1.07209314,666.9,666.33,1.11840277]
[1748029072227,1.634,666.92,666.33,1.11840277]
[1748029072430,1.07207857,666.91,666.33,1.11840277]
[1748029072627,1.07208095,666.9,666.33,1.11840277]
[1748029072828,1.634,666.92,666.33,1.11840277]
[1748029073022,1.07207478,666.91,666.33,1.11840277]
[1748029073224,1.07207478,666.9,666.33,1.11840277]
[1748029073428,1.634,666.92,666.33,1.11840277]
[1748029073727,1.07203711,666.91,666.33,1.11840277]
[1748029073928,1.07203711,666.9,666.33,1.11840277]
[1748029074130,1.634,666.92,666.33,1.11840277]
[1748029074432,1.07202355,666.91,666.33,1.11840277]
[1748029074630,1.07202355,666.9,666.33,1.11840277]
[1748029074833,1.634,666.92,666.33,1.11840277]
[1748029075131,1.07202894,666.91,666.33,1.11840277]
[1748029075332,1.07202894,666.9,666.33,1.11840277]
[1748029075532,1.634,666.92,666.33,1.11840277]
[1748029075733,1.07200783,666.91,666.37,1.11840277]
[1748029075926,1.07200783,666.9,666.37,1.11840277]
[1748029076125,1.634,666.92,666.37,1.11840277]
[1748029076330,1.07199712,666.91,666.37,1.11840277]
[1748029076531,1.07199712,666.9,666.37,1.11840277]
[1748029076730,1.634,666.92,666.37,1.11840277]
[1748029076930,1.07201385,666.91,666.37,1.11840277]
[1748029077225,1.07201385,666.9,666.37,1.11840277]
[1748029077428,1.634,666.92,666.37,1.11840277]
[1748029077734,1.07344373,666.91,666.38,1.11840277]
[1748029078033,1.634,666.92,666.38,1.11840277]
[1748029078034,1.07344373,666.9,666.38,1.11840277]
[1748029078233,1.634,666.92,666.38,1.11840277]
[1748029078434,1.07344153,666.91,666.38,1.11840277]
[1748029078634,1.07344153,666.9,666.38,1.11840277]
[1748029078934,1.634,666.92,666.38,1.11840277]
[1748029079135,1.07343938,666.91,666.38,1.11840277]
[1748029079334,1.07343938,666.9,666.38,1.11840277]
[1748029079535,1.634,666.92,666.38,1.11840277]
[1748029079730,1.07343669,666.91,666.38,1.11840277]
[1748029079930,1.07343669,666.9,666.38,1.11840277]
[1748029080131,1.634,666.92,666.38,1.11840277]
[1748029080333,1.07343651,666.91,666.38,1.11840277]
[1748029080531,1.07343651,666.9,666.38,1.11840277]
[1748029080737,1.634,666.92,666.34,1.11840277]
[1748029080936,1.07343795,666.91,666.34,1.11840277]
[1748029081135,1.07343795,666.9,666.34,1.11840277]
[1748029081336,1.634,666.92,666.34,1.11840277]
[1748029081537,1.07346984,666.91,666.34,1.11840277]
[1748029081730,1.07346984,666.9,666.34,1.11840277]
[1748029081930,1.634,666.92,666.34,1.11840277]
[1748029082136,1.07347049,666.91,666.34,1.11840277]
[1748029082336,1.07347049,666.9,666.34,1.11840277]
[1748029082535,1.634,666.92,666.34,1.11840277]
[1748029082734,1.0734768,666.91,666.34,1.11840277]
[1748029082932,1.07347934,666.91,666.34,1.11840277]
[1748029083133,1.07347934,666.9,666.34,1.11840277]
[1748029083330,1.634,666.92,666.34,1.11840277]
[1748029083533,1.07343593,666.91,666.34,1.11840277]
[1748029083732,1.634,666.92,666.34,1.11840277]
[1748029083937,1.0734355,666.91,666.34,1.11840277]
[1748029084136,1.0734467,666.9,666.34,1.11840277]
[1748029084336,1.634,666.92,666.34,1.11840277]
[1748029084538,1.07345519,666.91,666.34,1.11840277]
[1748029084738,1.07345519,666.9,666.34,1.11840277]
[1748029084938,1.634,666.92,666.34,1.11840277]
[1748029085133,1.07345721,666.91,666.34,1.11840277]
[1748029085333,1.07345721,666.9,666.34,1.11840277]
[1748029085533,1.634,666.92,666.34,1.11840277]
[1748029085739,1.07350489,666.91,666.34,1.11840277]
[1748029085933,1.07350489,666.9,666.34,1.11840277]
[1748029086237,1.634,666.92,666.34,1.11840277]
[1748029088741,1.634,666.92,666.46,1.11840277]
[1748029091746,1.634,666.92,666.44,1.11840277]
[1748029093643,1.634,666.92,666.43,1.11840277]
[1748029098751,1.634,666.92,666.41,1.11840277]
[1748029101755,1.634,666.92,666.44,1.11840277]
[1748029102455,1.11626254,667.08,666.44,1.11840277]
[1748029102653,1.55185142,667.07,666.44,1.11840277]
[1748029102854,1.55185142,667.06,666.44,1.11840277]
[1748029103053,1.55185142,667.05,666.44,1.11840277]
[1748029103254,1.55185142,667.04,666.44,1.11840277]
[1748029103454,1.07413289,667.03,666.44,1.11840277]
[1748029103755,1.07413289,667.02,666.44,1.11840277]
[1748029103948,1.07413289,667.01,666.44,1.11840277]
[1748029104153,1.11626254,667.08,666.44,1.11840277]
[1748029104453,1.5519225,667.07,666.44,1.11840277]
[1748029104752,1.5519225,667.06,666.44,1.11840277]
[1748029104952,1.07418778,667.05,666.52,1.11840277]
[1748029105152,1.07418778,667.04,666.52,1.11840277]
[1748029105351,1.012,667.05,666.52,1.11840277]
[1748029108558,1.012,667.05,666.59,1.11840277]
[1748029111061,1.012,667.05,666.6,1.11840277]
[1748029114356,1.012,667.05,666.57,1.11840277]
[1748029117061,1.012,667.05,666.53,1.11840277]
[1748029119563,1.012,667.05,666.46,1.11840277]
[1748029121959,1.012,667.05,666.48,1.11840277]
[1748029124966,1.012,667.05,666.47,1.11840277]
[1748029128162,1.012,667.05,666.48,1.11840277]
[1748029130670,1.012,667.05,666.51,1.11840277]
[1748029136076,1.012,667.05,666.53,1.11840277]
[1748029136270,1.11626254,667.21,666.53,1.11840277]
[1748029136474,1.54610414,667.2,666.53,1.11840277]
[1748029136773,1.54610414,667.19,666.53,1.11840277]
[1748029136974,1.54610414,667.18,666.53,1.11840277]
[1748029137168,1.07011697,667.17,666.53,1.11840277]
[1748029137370,1.07011697,667.16,666.53,1.11840277]
[1748029137568,1.07011697,667.15,666.53,1.11840277]
[1748029137870,1.07011697,667.14,666.53,1.11840277]
[1748029138179,1.07011697,667.13,666.53,1.11840277]
[1748029138377,1.0702239,667.12,666.53,1.11840277]
[1748029138578,1.34,667.12,666.53,1.11840277]
[1748029139482,1.34,667.12,666.54,1.11840277]
[1748029142284,1.34,667.12,666.39,1.4912037]
[1748029142285,1.34,667.12,666.59,1.11840277]
[1748029145186,1.34,667.12,666.6,1.11840277]
[1748029148389,1.34,667.12,666.59,1.11840277]
[1748029150991,1.34,667.12,666.6,1.11840277]
[1748029152592,1.11626254,667.23,666.6,1.11840277]
[1748029152792,1.54802354,667.22,666.6,1.11840277]
[1748029152986,1.11626254,667.23,666.6,1.11840277]
[1748029153186,1.54803897,667.22,666.6,1.11840277]
[1748029153390,1.54803897,667.21,666.6,1.11840277]
[1748029153593,1.54803897,667.2,666.6,1.11840277]
[1748029153887,3.72087513,668.12,665.68,3.72800926]
[1748029153888,1.54803897,667.19,666.61,1.11840277]
[1748029154091,1.54803897,667.18,666.61,1.11840277]
[1748029154292,1.54803897,667.17,666.61,1.11840277]
[1748029154490,1.54803897,667.16,666.61,1.11840277]
[1748029154690,1.07146936,667.15,666.61,1.11840277]
[1748029154888,1.07164286,667.14,666.61,1.11840277]
[1748029155093,1.07164286,667.13,666.61,1.11840277]
[1748029155293,1.07164286,667.12,666.61,1.11840277]
[1748029155494,1.617,667.16,666.61,1.11840277]
[1748029155695,1.0717223,667.15,665.5,0.30052592]
[1748029155890,1.0717223,667.14,665.5,0.30052592]
[1748029156089,1.0717223,667.13,665.5,0.30052592]
[1748029156389,1.0717223,667.12,665.5,0.30052592]
[1748029156589,1.617,667.16,665.5,0.30052592]
[1748029157093,1.07182739,667.15,666.62,1.12125645]
[1748029157290,1.617,667.16,666.62,1.12125645]
[1748029160498,1.617,667.16,666.56,1.12125645]
[1748029162402,1.07255476,667.15,666.56,1.12125645]
[1748029162602,1.617,667.16,666.56,1.12125645]
[1748029162902,1.07255304,667.15,666.56,1.12125645]
[1748029163102,1.617,667.16,666.56,1.12125645]
[1748029163397,1.07253356,667.15,666.56,1.12125645]
[1748029163600,1.617,667.16,666.56,1.12125645]
[1748029163803,1.07263429,667.15,666.56,1.12125645]
[1748029163999,1.617,667.16,666.56,1.12125645]
[1748029164200,1.07264096,667.15,666.56,1.12125645]
[1748029164398,1.617,667.16,666.56,1.12125645]
[1748029164600,1.07267795,667.15,666.56,1.12125645]
[1748029164802,1.617,667.16,666.56,1.12125645]
[1748029165004,1.07268148,667.15,666.56,1.12125645]
[1748029165196,1.617,667.16,666.56,1.12125645]
[1748029165401,1.07267985,667.15,666.56,1.12125645]
[1748029165601,1.617,667.16,666.56,1.12125645]
[1748029165902,1.0726997,667.15,666.56,1.12125645]
[1748029166102,1.617,667.16,666.61,1.12125645]
[1748029166398,1.07268906,667.15,666.61,1.12125645]
[1748029166600,1.617,667.16,666.61,1.12125645]
[1748029166803,1.54976152,667.15,666.61,1.12125645]
[1748029167103,1.07266334,667.14,666.61,1.12125645]
[1748029167306,1.07266334,667.13,666.61,1.12125645]
[1748029167604,1.07266334,667.12,666.61,1.12125645]
[1748029167804,1.617,667.16,666.61,1.12125645]
[1748029168004,1.54976814,667.15,666.61,1.12125645]
[1748029168199,1.07266768,667.14,666.61,1.12125645]
[1748029168401,1.07266768,667.13,666.61,1.12125645]
[1748029168601,1.07266768,667.12,666.61,1.12125645]
[1748029168799,1.617,667.16,666.61,1.12125645]
[1748029169004,1.55001986,667.15,666.61,1.12125645]
[1748029169205,1.07284191,667.14,666.61,1.12125645]
[1748029169406,1.07284191,667.13,666.66,1.12125645]
[1748029169607,1.07284191,667.12,666.66,1.12125645]
[1748029169907,1.617,667.16,666.66,1.12125645]
[1748029170106,1.07279557,667.15,666.66,1.12125645]
[1748029170310,1.07279557,667.14,666.66,1.12125645]
[1748029170505,1.07279557,667.13,666.66,1.12125645]
[1748029170703,1.07279557,667.12,666.66,1.12125645]
[1748029171001,1.617,667.16,666.66,1.12125645]
[1748029171206,1.54999357,667.15,666.66,1.12125645]
[1748029171408,1.07280426,667.14,666.66,1.12125645]
[1748029171609,1.07280426,667.13,666.66,1.12125645]
[1748029171810,1.07280426,667.12,666.66,1.12125645]
[1748029172012,1.617,667.16,666.66,1.12125645]
[1748029172208,1.54991068,667.15,666.66,1.12125645]
[1748029172407,1.54991068,667.14,666.66,1.12125645]
[1748029172705,1.54991068,667.13,666.66,1.12125645]
[1748029172904,1.54991068,667.12,666.66,1.12125645]
[1748029173109,1.54987421,667.11,666.66,1.12125645]
[1748029173310,1.54987421,667.1,666.66,1.12125645]
[1748029173609,1.54987421,667.09,666.66,1.12125645]
[1748029173811,1.54987421,667.08,666.66,1.12125645]
[1748029174105,1.54987421,667.07,666.66,1.12125645]
[1748029174411,1.07274686,667.06,666.66,1.12125645]
[1748029174610,1.07274686,667.05,666.52,1.12125645]
[1748029174805,1.07262889,667.04,666.52,1.12125645]
[1748029175003,1.07262889,667.03,666.52,1.12125645]
[1748029175205,1.07261112,667.02,666.52,1.12125645]
[1748029175409,1.617,667.16,666.52,1.12125645]
[1748029175609,1.54971331,667.15,666.52,1.12125645]
[1748029175809,1.54971331,667.14,666.52,1.12125645]
[1748029176010,1.54971331,667.13,666.52,1.12125645]
[1748029176206,1.54971331,667.12,666.52,1.12125645]
[1748029176410,1.54971331,667.11,666.52,1.12125645]
[1748029176611,1.54969192,667.1,666.52,1.12125645]
[1748029176811,1.54969192,667.09,666.52,1.12125645]
[1748029177013,1.54969192,667.08,666.52,1.12125645]
[1748029177213,1.54969192,667.07,666.52,1.12125645]
[1748029177407,1.54969192,667.06,666.5,1.12125645]
[1748029177609,1.54969192,667.05,666.5,1.12125645]
[1748029177810,1.07260081,667.04,666.5,1.12125645]
[1748029178013,1.07260081,667.03,666.5,1.12125645]
[1748029178210,1.07260081,667.02,666.5,1.12125645]
[1748029178407,1.07260081,667.01,666.5,1.12125645]
[1748029178613,1.07250895,667.0,666.5,1.12125645]
[1748029178812,1.11920745,667.15,666.5,1.12125645]
[1748029179007,1.54957886,667.14,666.5,1.12125645]
[1748029179207,1.54957886,667.13,666.5,1.12125645]
[1748029179407,1.54957886,667.12,666.48,1.12125645]
[1748029179607,1.54957886,667.11,666.48,1.12125645]
[1748029179810,1.54957886,667.1,666.48,1.12125645]
[1748029180011,1.54957886,667.09,666.48,1.12125645]
[1748029180210,1.54957886,667.08,666.48,1.12125645]
[1748029180409,1.54957886,667.07,666.48,1.12125645]
[1748029180609,1.54957886,667.06,666.48,1.12125645]
[1748029180813,1.54957886,667.05,666.48,1.12125645]
[1748029181014,1.54957886,667.04,666.48,1.12125645]
[1748029181214,1.07251578,667.03,666.48,1.12125645]
[1748029181413,1.07251578,667.02,666.48,1.12125645]
[1748029181614,1.07251578,667.01,666.48,1.12125645]
[1748029181914,1.07251578,667.0,666.48,1.12125645]
[1748029182110,1.11920745,667.14,666.48,1.12125645]
[1748029182311,1.54966111,667.13,666.48,1.12125645]
[1748029182611,1.54966111,667.12,666.48,1.12125645]
[1748029182809,1.54966111,667.11,666.48,1.12125645]
[1748029183014,1.54966111,667.1,666.48,1.12125645]
[1748029183214,1.54966111,667.09,666.48,1.12125645]
[1748029183414,1.54966111,667.08,666.48,1.12125645]
[1748029183615,1.54966111,667.07,666.48,1.12125645]
[1748029183812,1.54966111,667.06,666.48,1.12125645]
[1748029184013,1.54967904,667.05,666.48,1.12125645]
[1748029184212,1.54967904,667.04,666.48,1.12125645]
[1748029184416,1.07258481,667.03,666.48,1.12125645]
[1748029184616,1.07258481,667.02,666.53,1.12125645]
[1748029184817,1.07258481,667.01,666.53,1.12125645]
[1748029185115,1.11920745,667.1,666.53,1.12125645]
[1748029185312,1.54976146,667.09,666.53,1.12125645]
[1748029185510,1.54976146,667.08,666.53,1.12125645]
[1748029185813,1.54976146,667.07,666.53,1.12125645]
[1748029186011,1.54976146,667.06,666.53,1.12125645]
[1748029186211,1.54976146,667.05,666.53,1.12125645]
[1748029186412,1.54976146,667.04,666.53,1.12125645]
[1748029186615,1.07267772,667.03,666.53,1.12125645]
[1748029186810,1.07267772,667.02,666.53,1.12125645]
[1748029187015,1.07267772,667.01,666.53,1.12125645]
[1748029187310,1.11920745,667.1,666.53,1.12125645]
[1748029187515,1.54987568,667.09,666.53,1.12125645]
[1748029187708,1.54987568,667.08,666.53,1.12125645]
[1748029187913,1.54987568,667.07,666.53,1.12125645]
[1748029188112,1.54987568,667.06,666.53,1.12125645]
[1748029188311,1.54987568,667.05,666.53,1.12125645]
[1748029188511,1.11920745,667.1,666.53,1.12125645]
[1748029188716,1.07283279,667.09,666.53,1.12125645]
[1748029188918,1.07283279,667.08,666.53,1.12125645]
[1748029189212,1.11920745,667.1,666.53,1.12125645]
[1748029189412,1.07289282,667.09,666.53,1.12125645]
[1748029189623,1.11920745,667.1,666.53,1.12125645]
[1748029189819,1.07290629,667.09,666.53,1.12125645]
[1748029190018,1.11920745,667.1,666.53,1.12125645]
[1748029190219,1.07290092,667.09,666.59,1.12125645]
[1748029190417,1.617,667.16,666.59,1.12125645]
[1748029190620,1.55014169,667.15,666.59,1.12125645]
[1748029190821,1.55014169,667.14,666.59,1.12125645]
[1748029191022,1.55014169,667.13,666.59,1.12125645]
[1748029191224,1.55014898,667.12,666.59,1.12125645]
[1748029191425,1.07291797,667.11,666.59,1.12125645]
[1748029191722,1.07291797,667.1,666.59,1.12125645]
[1748029191922,1.07291797,667.09,666.59,1.12125645]
[1748029192222,1.11920745,667.2,666.59,1.12125645]